[Event "Late-Titled-Tuesday-Blitz-October-17-2023"]
[Site "Chess.com"]
[Date "2023.10.17"]
[Round "3"]
[White "GAO"]
[Black "jaskol95"]
[Result "0-1"]
[WhiteElo "2348"]
[BlackElo "2588"]
[TimeControl "180+1"]
[EndTime "14:29:24 PDT"]
[Termination "jaskol95 won by checkmate"]

1. e4 {[%clk 0:02:58.5]} 1... d5 {[%clk 0:03:00.3]} 2. Nf3 {[%clk 0:02:59.4]}
2... dxe4 {[%clk 0:03:00.4]} 3. Ng5 {[%clk 0:03:00.3]} 3... Bf5 {[%clk
0:02:59.2]} 4. Nc3 {[%clk 0:02:57.5]} 4... Nf6 {[%clk 0:02:56.6]} 5. Bc4 {[%clk
0:02:57.8]} 5... e6 {[%clk 0:02:55.2]} 6. Qe2 {[%clk 0:02:58.4]} 6... Nc6 {[%clk
0:02:49.3]} 7. Bb5 {[%clk 0:02:55.8]} 7... Qd4 {[%clk 0:02:34.8]} 8. Bxc6+
{[%clk 0:02:27.9]} 8... bxc6 {[%clk 0:02:34.6]} 9. Qa6 {[%clk 0:02:26.6]} 9...
Qb6 {[%clk 0:02:10.8]} 10. Qc4 {[%clk 0:02:05.2]} 10... Be7 {[%clk 0:02:04.3]}
11. Ngxe4 {[%clk 0:02:03.8]} 11... O-O {[%clk 0:02:01.5]} 12. d3 {[%clk
0:02:01.9]} 12... Nd5 {[%clk 0:01:58.1]} 13. O-O {[%clk 0:01:56.9]} 13... Rad8
{[%clk 0:01:50.8]} 14. a4 {[%clk 0:01:53]} 14... Nxc3 {[%clk 0:01:48]} 15. Nxc3
{[%clk 0:01:45.4]} 15... Rd4 {[%clk 0:01:43.3]} 16. Qa2 {[%clk 0:01:42.1]} 16...
Rh4 {[%clk 0:01:39.9]} 17. Be3 {[%clk 0:01:40.1]} 17... Qb4 {[%clk 0:01:37]} 18.
g3 {[%clk 0:01:18.4]} 18... Bh3 {[%clk 0:01:29.4]} 19. Rfe1 {[%clk 0:01:05.3]}
19... Qg4 {[%clk 0:01:24.3]} 20. f4 {[%clk 0:00:36.6]} 20... Qf3 {[%clk
0:01:16.9]} 21. Re2 {[%clk 0:00:36.5]} 21... Rg4 {[%clk 0:00:50.4]} 22. Qc4
{[%clk 0:00:23.5]} 22... Rb8 {[%clk 0:00:33.8]} 23. Rb1 {[%clk 0:00:17.1]} 23...
Rg6 {[%clk 0:00:21.3]} 24. Qe4 {[%clk 0:00:17.2]} 24... Qh5 {[%clk 0:00:21.6]}
25. Qxc6 {[%clk 0:00:14.1]} 25... Bg4 {[%clk 0:00:20.6]} 26. Rf2 {[%clk
0:00:14.1]} 26... Bd6 {[%clk 0:00:18.1]} 27. Ne4 {[%clk 0:00:13.4]} 27... Bf3
{[%clk 0:00:14.8]} 28. Rbf1 {[%clk 0:00:09.3]} 28... Be2 {[%clk 0:00:07]} 29.
Re1 {[%clk 0:00:09.4]} 29... Bf3 {[%clk 0:00:07.5]} 30. Ref1 {[%clk 0:00:10.1]}
30... Bxe4 {[%clk 0:00:08.1]} 31. Qxe4 {[%clk 0:00:09.7]} 31... Qa5 {[%clk
0:00:07.4]} 32. b3 {[%clk 0:00:09.4]} 32... h5 {[%clk 0:00:07.4]} 33. Qf3 {[%clk
0:00:09.5]} 33... h4 {[%clk 0:00:07.8]} 34. Kg2 {[%clk 0:00:09.3]} 34... hxg3
{[%clk 0:00:08]} 35. hxg3 {[%clk 0:00:10.2]} 35... f6 {[%clk 0:00:05.3]} 36. Rh1
{[%clk 0:00:11]} 36... Kf7 {[%clk 0:00:05.7]} 37. Qh5 {[%clk 0:00:10.9]} 37...
Qxh5 {[%clk 0:00:05.5]} 38. Rxh5 {[%clk 0:00:11.8]} 38... a6 {[%clk 0:00:03.8]}
39. Ra5 {[%clk 0:00:12.4]} 39... Bb4 {[%clk 0:00:03.4]} 40. Rxa6 {[%clk
0:00:11.7]} 40... Ke7 {[%clk 0:00:03.8]} 41. Ra7 {[%clk 0:00:12.1]} 41... Bd6
{[%clk 0:00:03.7]} 42. Ra5 {[%clk 0:00:10]} 42... Rh8 {[%clk 0:00:03.7]} 43. Bc5
{[%clk 0:00:09.6]} 43... Rgh6 {[%clk 0:00:04.1]} 44. Bxd6+ {[%clk 0:00:10.4]}
44... Kxd6 {[%clk 0:00:05]} 45. Ra6+ {[%clk 0:00:11]} 45... Kd5 {[%clk 0:00:05]}
46. Re2 {[%clk 0:00:11.3]} 46... Rh2+ {[%clk 0:00:04.3]} 47. Kf3 {[%clk
0:00:12.2]} 47... Rxe2 {[%clk 0:00:04.6]} 48. Kxe2 {[%clk 0:00:13.1]} 48... Rh2+
{[%clk 0:00:05.1]} 49. Kd1 {[%clk 0:00:13.8]} 49... c5 {[%clk 0:00:04.7]} 50.
Ra7 {[%clk 0:00:14.1]} 50... Kd4 {[%clk 0:00:04.8]} 51. Rc7 {[%clk 0:00:13]}
51... Ke3 {[%clk 0:00:04.7]} 52. Rxc5 {[%clk 0:00:13.1]} 52... Rh1# {[%clk
0:00:05]} 0-1

[Event "Late-Titled-Tuesday-Blitz-October-17-2023"]
[Site "Chess.com"]
[Date "2023.10.17"]
[Round "3"]
[White "Artyom_ChessMate"]
[Black "Alex_Sahakyan2006"]
[Result "1-0"]
[WhiteElo "2528"]
[BlackElo "2763"]
[TimeControl "180+1"]
[EndTime "14:29:32 PDT"]
[Termination "Artyom_ChessMate won by checkmate"]

1. e4 {[%clk 0:03:00.9]} 1... Nc6 {[%clk 0:02:56.1]} 2. Nf3 {[%clk 0:03:00.2]}
2... d6 {[%clk 0:02:56]} 3. d4 {[%clk 0:03:00.6]} 3... Nf6 {[%clk 0:02:56.7]} 4.
Nc3 {[%clk 0:03:00.9]} 4... g6 {[%clk 0:02:57.3]} 5. Be3 {[%clk 0:02:53.3]} 5...
Bg7 {[%clk 0:02:55.5]} 6. Qd2 {[%clk 0:02:53.6]} 6... Ng4 {[%clk 0:02:55.3]} 7.
Bg5 {[%clk 0:02:50.4]} 7... h6 {[%clk 0:02:54.8]} 8. Bh4 {[%clk 0:02:50.8]} 8...
O-O {[%clk 0:02:48.6]} 9. h3 {[%clk 0:02:50]} 9... Nf6 {[%clk 0:02:48.8]} 10. g4
{[%clk 0:02:47]} 10... a6 {[%clk 0:02:16.1]} 11. Bg2 {[%clk 0:02:24.9]} 11... b5
{[%clk 0:01:56.9]} 12. a3 {[%clk 0:02:23.9]} 12... Rb8 {[%clk 0:01:52.3]} 13.
O-O {[%clk 0:02:20.2]} 13... b4 {[%clk 0:01:49.7]} 14. axb4 {[%clk 0:02:18.8]}
14... Rxb4 {[%clk 0:01:50.2]} 15. b3 {[%clk 0:02:14.5]} 15... h5 {[%clk
0:01:35]} 16. Nd5 {[%clk 0:01:32.8]} 16... Nxd5 {[%clk 0:01:25.3]} 17. exd5
{[%clk 0:01:31.2]} 17... hxg4 {[%clk 0:01:18.8]} 18. hxg4 {[%clk 0:01:27.6]}
18... Rxd4 {[%clk 0:01:13.3]} 19. Nxd4 {[%clk 0:01:26.6]} 19... Nxd4 {[%clk
0:01:14.2]} 20. Rae1 {[%clk 0:01:23.1]} 20... Re8 {[%clk 0:00:49.3]} 21. Re4
{[%clk 0:01:21.4]} 21... c5 {[%clk 0:00:36.2]} 22. dxc6 {[%clk 0:01:18]} 22...
Nxc6 {[%clk 0:00:35.4]} 23. Rfe1 {[%clk 0:01:16.6]} 23... d5 {[%clk 0:00:27.8]}
24. Ra4 {[%clk 0:01:11.4]} 24... Be6 {[%clk 0:00:20.4]} 25. Rxa6 {[%clk
0:01:05.9]} 25... Qc8 {[%clk 0:00:20.9]} 26. Ra4 {[%clk 0:00:41.6]} 26... d4
{[%clk 0:00:20.9]} 27. Qd3 {[%clk 0:00:23]} 27... Bxg4 {[%clk 0:00:16.6]} 28.
Rc4 {[%clk 0:00:19.6]} 28... Bd7 {[%clk 0:00:12.1]} 29. Rxe7 {[%clk 0:00:17.6]}
29... Qa6 {[%clk 0:00:09.4]} 30. Rxe8+ {[%clk 0:00:16.9]} 30... Bxe8 {[%clk
0:00:10.3]} 31. Qe4 {[%clk 0:00:15.6]} 31... Qa1+ {[%clk 0:00:09.7]} 32. Kh2
{[%clk 0:00:14.6]} 32... Ne5 {[%clk 0:00:05]} 33. Rc8 {[%clk 0:00:13.4]} 33...
Kf8 {[%clk 0:00:04.3]} 34. Bg3 {[%clk 0:00:12.9]} 34... Qa6 {[%clk 0:00:03.5]}
35. Rxe8+ {[%clk 0:00:12.1]} 35... Kxe8 {[%clk 0:00:03.6]} 36. Bxe5 {[%clk
0:00:12.8]} 36... Bxe5+ {[%clk 0:00:04.1]} 37. Qxe5+ {[%clk 0:00:13.7]} 37...
Kf8 {[%clk 0:00:05]} 38. Qxd4 {[%clk 0:00:13.7]} 38... Kg8 {[%clk 0:00:05.3]}
39. Qd8+ {[%clk 0:00:13.5]} 39... Kg7 {[%clk 0:00:05.4]} 40. Qd4+ {[%clk
0:00:13.7]} 40... Kg8 {[%clk 0:00:05.6]} 41. Qf4 {[%clk 0:00:14.3]} 41... Qe2
{[%clk 0:00:05.5]} 42. b4 {[%clk 0:00:08.8]} 42... Qxc2 {[%clk 0:00:05]} 43. b5
{[%clk 0:00:08.3]} 43... Qb2 {[%clk 0:00:05.6]} 44. Bf1 {[%clk 0:00:04.1]} 44...
Qb3 {[%clk 0:00:04.5]} 45. Kg2 {[%clk 0:00:03.1]} 45... Qd5+ {[%clk 0:00:04.3]}
46. Qf3 {[%clk 0:00:03.1]} 46... Qg5+ {[%clk 0:00:04.7]} 47. Qg3 {[%clk
0:00:03.6]} 47... Qd5+ {[%clk 0:00:05.2]} 48. Kg1 {[%clk 0:00:04.3]} 48... Qc5
{[%clk 0:00:05]} 49. Qe3 {[%clk 0:00:04.3]} 49... Qc2 {[%clk 0:00:01.8]} 50. b6
{[%clk 0:00:04.7]} 50... Qc6 {[%clk 0:00:02.4]} 51. Bg2 {[%clk 0:00:03.8]} 51...
Qb5 {[%clk 0:00:03.1]} 52. b7 {[%clk 0:00:03.7]} 52... Kh7 {[%clk 0:00:03.1]}
53. Qh3+ {[%clk 0:00:03.5]} 53... Kg7 {[%clk 0:00:03.8]} 54. Qg3 {[%clk
0:00:04.2]} 54... Qb1+ {[%clk 0:00:03.4]} 55. Kh2 {[%clk 0:00:04.8]} 55... Qb2
{[%clk 0:00:03.4]} 56. b8=Q {[%clk 0:00:05.7]} 56... Qf6 {[%clk 0:00:03.5]} 57.
Qbe5 {[%clk 0:00:05.8]} 57... Kg8 {[%clk 0:00:03.1]} 58. Qxf6 {[%clk 0:00:05.4]}
58... Kh7 {[%clk 0:00:03.7]} 59. Qxf7+ {[%clk 0:00:06]} 59... Kh8 {[%clk
0:00:03.6]} 60. Qh3# {[%clk 0:00:06.6]} 1-0

[Event "Late-Titled-Tuesday-Blitz-October-17-2023"]
[Site "Chess.com"]
[Date "2023.10.17"]
[Round "3"]
[White "filipluczak05"]
[Black "stasOR4ik"]
[Result "1/2-1/2"]
[WhiteElo "2620"]
[BlackElo "2444"]
[TimeControl "180+1"]
[EndTime "14:29:43 PDT"]
[Termination "Game drawn by repetition"]

1. d4 {[%clk 0:03:00.3]} 1... d5 {[%clk 0:03:00.2]} 2. Nc3 {[%clk 0:03:00.7]}
2... Nf6 {[%clk 0:03:00.3]} 3. Bf4 {[%clk 0:03:00.6]} 3... a6 {[%clk 0:02:59.6]}
4. e3 {[%clk 0:03:00.2]} 4... c5 {[%clk 0:02:58.4]} 5. dxc5 {[%clk 0:02:59]}
5... Nc6 {[%clk 0:02:57.3]} 6. a3 {[%clk 0:02:58.6]} 6... e5 {[%clk 0:02:57.3]}
7. Bg5 {[%clk 0:02:58.9]} 7... d4 {[%clk 0:02:47.7]} 8. exd4 {[%clk 0:02:55.8]}
8... exd4 {[%clk 0:02:47.9]} 9. Ne4 {[%clk 0:02:56.1]} 9... Qe7 {[%clk
0:02:36.8]} 10. Bd3 {[%clk 0:02:43]} 10... Bf5 {[%clk 0:02:35.2]} 11. Bxf6
{[%clk 0:02:38]} 11... gxf6 {[%clk 0:02:34.1]} 12. Qe2 {[%clk 0:02:38.2]} 12...
Bxe4 {[%clk 0:02:22.3]} 13. Bxe4 {[%clk 0:02:37.4]} 13... O-O-O {[%clk
0:02:14.9]} 14. Bxc6 {[%clk 0:02:36.7]} 14... bxc6 {[%clk 0:02:15.2]} 15. O-O-O
{[%clk 0:02:30.5]} 15... Qxc5 {[%clk 0:02:11.6]} 16. Qxa6+ {[%clk 0:02:29.8]}
16... Kc7 {[%clk 0:02:11.4]} 17. Nf3 {[%clk 0:02:23.7]} 17... Ra8 {[%clk
0:02:03.4]} 18. Qd3 {[%clk 0:02:17.9]} 18... Bh6+ {[%clk 0:02:03.4]} 19. Kb1
{[%clk 0:02:16.4]} 19... Rhb8 {[%clk 0:01:58.2]} 20. Qxd4 {[%clk 0:01:53.1]}
20... Qxd4 {[%clk 0:01:43.8]} 21. Rxd4 {[%clk 0:01:49]} 21... Rxa3 {[%clk
0:01:39.5]} 22. Rhd1 {[%clk 0:01:47.9]} 22... Rb5 {[%clk 0:01:24.5]} 23. Rd7+
{[%clk 0:01:40.2]} 23... Kb6 {[%clk 0:01:24.4]} 24. Nd4 {[%clk 0:01:37.9]} 24...
Rb4 {[%clk 0:01:17.4]} 25. c3 {[%clk 0:01:35.5]} 25... Rxc3 {[%clk 0:01:16.7]}
26. Rxf7 {[%clk 0:01:26.6]} 26... Bf4 {[%clk 0:01:03.5]} 27. Ne2 {[%clk
0:00:55.8]} 27... Rcb3 {[%clk 0:00:48.4]} 28. Nxf4 {[%clk 0:00:54.3]} 28...
Rxb2+ {[%clk 0:00:48.9]} 29. Ka1 {[%clk 0:00:50.6]} 29... Rxf2 {[%clk
0:00:42.1]} 30. Nd3 {[%clk 0:00:35.9]} 30... Ra4+ {[%clk 0:00:41]} 31. Kb1
{[%clk 0:00:35.6]} 31... Rxg2 {[%clk 0:00:39.6]} 32. Rxf6 {[%clk 0:00:34.5]}
32... Ra3 {[%clk 0:00:31.4]} 33. Nc1 {[%clk 0:00:18.3]} 33... Rxh2 {[%clk
0:00:19]} 34. Rdd6 {[%clk 0:00:16.4]} 34... Rc3 {[%clk 0:00:19.2]} 35. Rh6
{[%clk 0:00:16.5]} 35... Rg2 {[%clk 0:00:18.2]} 36. Rd3 {[%clk 0:00:15]} 36...
Rcc2 {[%clk 0:00:17.1]} 37. Rb3+ {[%clk 0:00:14.4]} 37... Kc5 {[%clk 0:00:16.6]}
38. Rxh7 {[%clk 0:00:15]} 38... Kc4 {[%clk 0:00:15.7]} 39. Rh4+ {[%clk
0:00:14.7]} 39... Kd5 {[%clk 0:00:15.9]} 40. Rhh3 {[%clk 0:00:12.9]} 40... c5
{[%clk 0:00:16]} 41. Rhd3+ {[%clk 0:00:12.8]} 41... Kc6 {[%clk 0:00:16]} 42.
Rdc3 {[%clk 0:00:13.2]} 42... Rcd2 {[%clk 0:00:16]} 43. Nd3 {[%clk 0:00:10.4]}
43... Rg1+ {[%clk 0:00:14.6]} 44. Rc1 {[%clk 0:00:10.8]} 44... Rdd1 {[%clk
0:00:13]} 45. Rxd1 {[%clk 0:00:08.9]} 45... Rxd1+ {[%clk 0:00:13.9]} 46. Nc1
{[%clk 0:00:09.5]} 46... c4 {[%clk 0:00:13.6]} 47. Rh3 {[%clk 0:00:10.1]} 47...
Kc5 {[%clk 0:00:13.9]} 48. Kc2 {[%clk 0:00:10.4]} 48... Rg1 {[%clk 0:00:13.7]}
49. Rh5+ {[%clk 0:00:10.6]} 49... Kb4 {[%clk 0:00:13.4]} 50. Rh2 {[%clk
0:00:10.2]} 50... Rg3 {[%clk 0:00:12.4]} 51. Ne2 {[%clk 0:00:08.9]} 51... Ra3
{[%clk 0:00:11.6]} 52. Kb2 {[%clk 0:00:07.7]} 52... c3+ {[%clk 0:00:10.1]} 53.
Kc2 {[%clk 0:00:08.1]} 53... Ra2+ {[%clk 0:00:10]} 54. Kd3 {[%clk 0:00:08.8]}
54... Rd2+ {[%clk 0:00:10.3]} 55. Ke3 {[%clk 0:00:09.5]} 55... Rd1 {[%clk
0:00:09.6]} 56. Rh4+ {[%clk 0:00:09.4]} 56... Kb3 {[%clk 0:00:09.2]} 57. Rh8
{[%clk 0:00:08.8]} 57... c2 {[%clk 0:00:08.5]} 58. Rb8+ {[%clk 0:00:09]} 58...
Ka2 {[%clk 0:00:08.5]} 59. Rc8 {[%clk 0:00:09.2]} 59... Kb2 {[%clk 0:00:08.3]}
60. Rb8+ {[%clk 0:00:09.7]} 60... Ka2 {[%clk 0:00:08.6]} 61. Nc3+ {[%clk
0:00:09.2]} 61... Ka3 {[%clk 0:00:07.5]} 62. Ne2 {[%clk 0:00:05.9]} 62... Re1
{[%clk 0:00:06.3]} 63. Rc8 {[%clk 0:00:04.2]} 63... Kb2 {[%clk 0:00:05.7]} 64.
Rb8+ {[%clk 0:00:04.2]} 64... Ka2 {[%clk 0:00:06.3]} 65. Rc8 {[%clk 0:00:04.7]}
65... Kb2 {[%clk 0:00:06.8]} 66. Rb8+ {[%clk 0:00:05.1]} 66... Ka2 {[%clk
0:00:07.3]} 67. Rc8 {[%clk 0:00:05.1]} 67... Kb2 {[%clk 0:00:07.8]} 1/2-1/2

[Event "Late-Titled-Tuesday-Blitz-October-17-2023"]
[Site "Chess.com"]
[Date "2023.10.17"]
[Round "3"]
[White "GianmarcoVaR"]
[Black "Hrant_ChessMood"]
[Result "0-1"]
[WhiteElo "2700"]
[BlackElo "2929"]
[TimeControl "180+1"]
[EndTime "14:29:46 PDT"]
[Termination "Hrant_ChessMood won by resignation"]

1. d4 {[%clk 0:03:00.9]} 1... d5 {[%clk 0:02:58.9]} 2. Nf3 {[%clk 0:03:01.5]}
2... Nf6 {[%clk 0:02:58.9]} 3. c3 {[%clk 0:03:00.5]} 3... c5 {[%clk 0:02:52.7]}
4. dxc5 {[%clk 0:02:59.4]} 4... e6 {[%clk 0:02:50.8]} 5. b4 {[%clk 0:02:59.9]}
5... a5 {[%clk 0:02:47.3]} 6. e3 {[%clk 0:02:59.7]} 6... axb4 {[%clk 0:02:43.1]}
7. cxb4 {[%clk 0:03:00.6]} 7... b6 {[%clk 0:02:43.5]} 8. Bb5+ {[%clk 0:03:00.5]}
8... Bd7 {[%clk 0:02:43.3]} 9. Bxd7+ {[%clk 0:03:01.1]} 9... Nfxd7 {[%clk
0:02:41.6]} 10. a4 {[%clk 0:02:46.4]} 10... bxc5 {[%clk 0:02:40.2]} 11. b5
{[%clk 0:02:47.1]} 11... c4 {[%clk 0:02:35.7]} 12. O-O {[%clk 0:02:46.5]} 12...
Nc5 {[%clk 0:02:35.4]} 13. Nc3 {[%clk 0:02:42.2]} 13... Be7 {[%clk 0:02:28.9]}
14. Ba3 {[%clk 0:02:22.6]} 14... O-O {[%clk 0:02:26.1]} 15. Rb1 {[%clk
0:02:14.9]} 15... Re8 {[%clk 0:02:10]} 16. Qc2 {[%clk 0:02:03.7]} 16... Nbd7
{[%clk 0:02:09.4]} 17. Nd4 {[%clk 0:02:03.3]} 17... Bf6 {[%clk 0:02:09.7]} 18.
Nc6 {[%clk 0:02:03.2]} 18... Qc7 {[%clk 0:02:03.8]} 19. a5 {[%clk 0:01:55.7]}
19... Rxa5 {[%clk 0:01:44.5]} 20. Bxc5 {[%clk 0:01:07.5]} 20... Nxc5 {[%clk
0:01:42.1]} 21. Nxa5 {[%clk 0:01:08.2]} 21... Qxa5 {[%clk 0:01:42.6]} 22. Ne2
{[%clk 0:01:08.1]} 22... Rb8 {[%clk 0:01:36.4]} 23. Rfd1 {[%clk 0:01:03.2]}
23... g6 {[%clk 0:01:32.9]} 24. Nd4 {[%clk 0:00:42.4]} 24... Bxd4 {[%clk
0:01:32]} 25. Rxd4 {[%clk 0:00:43]} 25... Nb3 {[%clk 0:01:28.5]} 26. Rdd1 {[%clk
0:00:38.4]} 26... Qxb5 {[%clk 0:01:28.8]} 27. Qc3 {[%clk 0:00:36.3]} 27... Qb4
{[%clk 0:01:23.7]} 28. Qe5 {[%clk 0:00:36]} 28... Rd8 {[%clk 0:01:21.5]} 29. Qf6
{[%clk 0:00:35.3]} 29... Qd6 {[%clk 0:01:18.3]} 30. f4 {[%clk 0:00:15.5]} 30...
Nc5 {[%clk 0:01:15.2]} 31. h4 {[%clk 0:00:08.3]} 31... Ne4 {[%clk 0:01:15.6]}
32. Qd4 {[%clk 0:00:08.7]} 32... Qc5 {[%clk 0:01:08.5]} 33. Qxe4 {[%clk
0:00:06.6]} 33... dxe4 {[%clk 0:01:09.4]} 34. Rxd8+ {[%clk 0:00:07]} 34... Kg7
{[%clk 0:01:10.2]} 35. Rd4 {[%clk 0:00:07.8]} 35... c3 {[%clk 0:01:09.9]} 36.
Rc1 {[%clk 0:00:08]} 36... c2 {[%clk 0:01:06.8]} 37. Kf2 {[%clk 0:00:06.3]}
37... Qc3 {[%clk 0:01:03.4]} 38. Ke2 {[%clk 0:00:06.4]} 38... f5 {[%clk
0:01:00.1]} 39. Rd2 {[%clk 0:00:06.2]} 39... e5 {[%clk 0:00:53.5]} 40. g3 {[%clk
0:00:04.2]} 40... exf4 {[%clk 0:00:50.7]} 41. gxf4 {[%clk 0:00:03.9]} 41... Qf6
{[%clk 0:00:51.3]} 42. h5 {[%clk 0:00:01.8]} 42... Qh4 {[%clk 0:00:46.6]} 43.
Rdxc2 {[%clk 0:00:02.3]} 43... Qxh5+ {[%clk 0:00:46]} 44. Kd2 {[%clk 0:00:02.9]}
44... Qf3 {[%clk 0:00:40.6]} 45. Rc7+ {[%clk 0:00:03.2]} 45... Kh6 {[%clk
0:00:41.1]} 46. Re1 {[%clk 0:00:02.4]} 46... Qg2+ {[%clk 0:00:27.8]} 47. Re2
{[%clk 0:00:02.6]} 47... Qh3 {[%clk 0:00:28.7]} 48. Kc3 {[%clk 0:00:01.4]} 48...
Qg3 {[%clk 0:00:26]} 49. Kd4 {[%clk 0:00:01.5]} 49... Qg1 {[%clk 0:00:25.2]} 50.
Rcc2 {[%clk 0:00:01.7]} 50... Qa1+ {[%clk 0:00:25]} 51. Kd5 {[%clk 0:00:02.1]}
51... Qa7 {[%clk 0:00:21.2]} 52. Rh2+ {[%clk 0:00:02]} 52... Kg7 {[%clk
0:00:21.2]} 53. Kd6 {[%clk 0:00:02.4]} 53... Qb6+ {[%clk 0:00:20.8]} 54. Ke5
{[%clk 0:00:02.4]} 54... Qf6+ {[%clk 0:00:19.9]} 55. Kd5 {[%clk 0:00:02.7]}
55... h5 {[%clk 0:00:20.1]} 56. Rc7+ {[%clk 0:00:02.4]} 56... Kh6 {[%clk
0:00:20.3]} 57. Rg2 {[%clk 0:00:02.6]} 57... Qd8+ {[%clk 0:00:20.2]} 58. Kc6
{[%clk 0:00:02.6]} 58... Qd3 {[%clk 0:00:18.6]} 59. Rd7 {[%clk 0:00:02]} 59...
Qc3+ {[%clk 0:00:18.5]} 60. Kb7 {[%clk 0:00:01.9]} 60... Qb3+ {[%clk 0:00:18.5]}
61. Kc8 {[%clk 0:00:02.2]} 61... Qxe3 {[%clk 0:00:17.5]} 62. Rd6 {[%clk
0:00:02.7]} 62... Qc3+ {[%clk 0:00:17.8]} 63. Kd8 {[%clk 0:00:02.5]} 63... Qh8+
{[%clk 0:00:17.5]} 64. Ke7 {[%clk 0:00:02.6]} 64... Qg7+ {[%clk 0:00:18.4]} 65.
Ke6 {[%clk 0:00:03]} 65... e3 {[%clk 0:00:18.3]} 66. Kd5 {[%clk 0:00:03]} 66...
Qf7+ {[%clk 0:00:18]} 67. Kd4 {[%clk 0:00:03]} 67... Qe8 {[%clk 0:00:16.6]} 68.
Re2 {[%clk 0:00:01.6]} 68... Qe4+ {[%clk 0:00:16.4]} 69. Kc5 {[%clk 0:00:01.9]}
69... Qxf4 {[%clk 0:00:15.1]} 70. Re6 {[%clk 0:00:02.2]} 70... Qc7+ {[%clk
0:00:14]} 71. Kd5 {[%clk 0:00:02.4]} 71... f4 {[%clk 0:00:14.6]} 72. Rb6 {[%clk
0:00:02.7]} 72... Qxb6 {[%clk 0:00:14.6]} 0-1

[Event "Late-Titled-Tuesday-Blitz-October-17-2023"]
[Site "Chess.com"]
[Date "2023.10.17"]
[Round "3"]
[White "GoltsevDmitry2000"]
[Black "esskeettit"]
[Result "0-1"]
[WhiteElo "2655"]
[BlackElo "2502"]
[TimeControl "180+1"]
[EndTime "14:29:49 PDT"]
[Termination "esskeettit won by checkmate"]

1. e4 {[%clk 0:02:58.6]} 1... c5 {[%clk 0:02:59.8]} 2. Nf3 {[%clk 0:02:58.4]}
2... Nc6 {[%clk 0:03:00.2]} 3. d4 {[%clk 0:02:58.4]} 3... cxd4 {[%clk
0:03:00.8]} 4. Nxd4 {[%clk 0:02:59.3]} 4... g6 {[%clk 0:03:01]} 5. Nxc6 {[%clk
0:02:57.3]} 5... bxc6 {[%clk 0:03:00.6]} 6. Nc3 {[%clk 0:02:57.6]} 6... Bg7
{[%clk 0:03:00.4]} 7. Bc4 {[%clk 0:02:58.2]} 7... Nf6 {[%clk 0:02:57.5]} 8. O-O
{[%clk 0:02:57.8]} 8... O-O {[%clk 0:02:50.1]} 9. Bg5 {[%clk 0:02:56.9]} 9... d6
{[%clk 0:02:44.3]} 10. Qd2 {[%clk 0:02:54.8]} 10... Rb8 {[%clk 0:02:38.6]} 11.
Bb3 {[%clk 0:02:54.7]} 11... Be6 {[%clk 0:01:53.1]} 12. Rfd1 {[%clk 0:02:51.4]}
12... Qc7 {[%clk 0:01:30.7]} 13. h3 {[%clk 0:02:28.3]} 13... Rfd8 {[%clk
0:01:23.5]} 14. Qe3 {[%clk 0:02:25.3]} 14... Qa5 {[%clk 0:01:15.5]} 15. f4
{[%clk 0:01:54.2]} 15... Qb6 {[%clk 0:01:08.6]} 16. Qxb6 {[%clk 0:01:52.3]}
16... axb6 {[%clk 0:01:07.5]} 17. Bxe6 {[%clk 0:01:48.2]} 17... fxe6 {[%clk
0:01:07.3]} 18. e5 {[%clk 0:01:46.7]} 18... dxe5 {[%clk 0:00:57]} 19. fxe5
{[%clk 0:01:46.8]} 19... Rxd1+ {[%clk 0:00:48.7]} 20. Rxd1 {[%clk 0:01:45.1]}
20... Nd5 {[%clk 0:00:48.1]} 21. Nxd5 {[%clk 0:01:37.2]} 21... exd5 {[%clk
0:00:46.3]} 22. Re1 {[%clk 0:00:57.4]} 22... e6 {[%clk 0:00:44.7]} 23. Be7
{[%clk 0:00:57.4]} 23... c5 {[%clk 0:00:40.2]} 24. a4 {[%clk 0:00:51.7]} 24...
Bf8 {[%clk 0:00:30.3]} 25. Bd6 {[%clk 0:00:48.7]} 25... Bxd6 {[%clk 0:00:20.3]}
26. exd6 {[%clk 0:00:48.7]} 26... Kf7 {[%clk 0:00:20.5]} 27. Rf1+ {[%clk
0:00:49]} 27... Ke8 {[%clk 0:00:19.5]} 28. Rf6 {[%clk 0:00:44.1]} 28... Kd7
{[%clk 0:00:19.5]} 29. Rf7+ {[%clk 0:00:44.5]} 29... Kxd6 {[%clk 0:00:19.7]} 30.
Rxh7 {[%clk 0:00:45.2]} 30... b5 {[%clk 0:00:14.5]} 31. axb5 {[%clk 0:00:42.7]}
31... Rxb5 {[%clk 0:00:14.2]} 32. b3 {[%clk 0:00:43.4]} 32... c4 {[%clk
0:00:13.3]} 33. bxc4 {[%clk 0:00:42]} 33... dxc4 {[%clk 0:00:13.8]} 34. Rh4
{[%clk 0:00:41.4]} 34... Rc5 {[%clk 0:00:10.7]} 35. Rg4 {[%clk 0:00:39.2]} 35...
g5 {[%clk 0:00:10.4]} 36. Kf2 {[%clk 0:00:39.7]} 36... Rf5+ {[%clk 0:00:08.6]}
37. Ke3 {[%clk 0:00:38.4]} 37... Kc5 {[%clk 0:00:07.6]} 38. c3 {[%clk
0:00:28.8]} 38... Kd5 {[%clk 0:00:06.2]} 39. Rd4+ {[%clk 0:00:27.1]} 39... Kc5
{[%clk 0:00:06.2]} 40. Re4 {[%clk 0:00:27.5]} 40... Kd5 {[%clk 0:00:06.3]} 41.
Rg4 {[%clk 0:00:22.4]} 41... Kc5 {[%clk 0:00:06.3]} 42. g3 {[%clk 0:00:20.3]}
42... Kd5 {[%clk 0:00:05.1]} 43. Rd4+ {[%clk 0:00:19.7]} 43... Kc5 {[%clk
0:00:05.1]} 44. Rd8 {[%clk 0:00:19.5]} 44... Rf1 {[%clk 0:00:04.4]} 45. Rg8
{[%clk 0:00:15.4]} 45... Re1+ {[%clk 0:00:03.8]} 46. Kf3 {[%clk 0:00:11.4]}
46... Re5 {[%clk 0:00:03.6]} 47. Kg4 {[%clk 0:00:10.8]} 47... Re3 {[%clk
0:00:03.1]} 48. Rxg5+ {[%clk 0:00:11]} 48... Kd6 {[%clk 0:00:03.5]} 49. Ra5
{[%clk 0:00:10.5]} 49... Rxc3 {[%clk 0:00:04.4]} 50. h4 {[%clk 0:00:10.9]} 50...
Rc1 {[%clk 0:00:05.1]} 51. h5 {[%clk 0:00:10.9]} 51... Rh1 {[%clk 0:00:05.4]}
52. Kg5 {[%clk 0:00:09]} 52... c3 {[%clk 0:00:05.4]} 53. Ra2 {[%clk 0:00:09]}
53... Kd5 {[%clk 0:00:05.1]} 54. Re2 {[%clk 0:00:08.3]} 54... e5 {[%clk
0:00:03.8]} 55. h6 {[%clk 0:00:06.7]} 55... e4 {[%clk 0:00:04.4]} 56. Kg6 {[%clk
0:00:06.3]} 56... Kd4 {[%clk 0:00:04.5]} 57. g4 {[%clk 0:00:06.9]} 57... Kd3
{[%clk 0:00:05.1]} 58. Ra2 {[%clk 0:00:05.8]} 58... c2 {[%clk 0:00:05.5]} 59.
Ra3+ {[%clk 0:00:04.7]} 59... Kd2 {[%clk 0:00:06]} 60. Ra2 {[%clk 0:00:04.2]}
60... Kd1 {[%clk 0:00:06.2]} 61. Ra4 {[%clk 0:00:02.3]} 61... c1=Q {[%clk
0:00:06.4]} 62. Rd4+ {[%clk 0:00:02.8]} 62... Ke2 {[%clk 0:00:06.1]} 63. Rxe4+
{[%clk 0:00:03.1]} 63... Kf3 {[%clk 0:00:06.8]} 64. Re5 {[%clk 0:00:01.8]} 64...
Qc2+ {[%clk 0:00:07.6]} 65. Rf5+ {[%clk 0:00:01.8]} 65... Kxg4 {[%clk
0:00:08.3]} 66. Kg7 {[%clk 0:00:02.2]} 66... Qxf5 {[%clk 0:00:08.8]} 67. h7
{[%clk 0:00:02.6]} 67... Qxh7+ {[%clk 0:00:09.4]} 68. Kf8 {[%clk 0:00:02.5]}
68... Rf1+ {[%clk 0:00:10]} 69. Ke8 {[%clk 0:00:03.4]} 69... Qf7+ {[%clk
0:00:10]} 70. Kd8 {[%clk 0:00:03.6]} 70... Re1 {[%clk 0:00:10.6]} 71. Kc8 {[%clk
0:00:04.5]} 71... Re8# {[%clk 0:00:10.9]} 0-1